[Event "Titled Tuesday Blitz May 10 Early 2022"]
[White "Golubev, Mikhail"]
[Black "Shyaamnikhil P"]
[WhiteFideId "14100983"]
[BlackFideId "5024218"]
[WhiteElo "2374"]
[BlackElo "2329"]
[Result "1-0"]
[Round "11"]
[TimeControl "180+1"]
[Date "2022.05.10"]
[WhiteClock "0:00:54"]
[BlackClock "0:01:40"]

1. e4 {[%clk 0:03:00]}  c5 {[%clk 0:02:58]} 2. Nf3 {[%clk 0:03:00]}  d6 {[%clk 0:02:58]} 3. d4 {[%clk 0:03:00]}  cxd4 {[%clk 0:02:59]} 4. Nxd4 {[%clk 0:03:01]}  Nf6 {[%clk 0:02:59]} 5. Nc3 {[%clk 0:03:02]}  a6 {[%clk 0:02:59]} 6. Bc4 {[%clk 0:03:02]}  Nc6 {[%clk 0:02:57]} 7. Nxc6 {[%clk 0:02:52]}  bxc6 {[%clk 0:02:54]} 8. e5 {[%clk 0:02:50]}  Nd7 {[%clk 0:02:46]} 9. exd6 {[%clk 0:02:40]}  exd6 {[%clk 0:02:45]} 10. O-O {[%clk 0:02:34]}  Be7 {[%clk 0:02:42]} 11. Bf4 {[%clk 0:01:52]}  d5 {[%clk 0:02:37]} 12. Nxd5 {[%clk 0:01:49]}  cxd5 {[%clk 0:02:28]} 13. Qxd5 {[%clk 0:01:48]}  O-O {[%clk 0:02:27]} 14. Qxa8 {[%clk 0:01:44]}  Nb6 {[%clk 0:02:26]} 15. Qe4 {[%clk 0:01:39]}  Bc5 {[%clk 0:02:12]} 16. Bd3 {[%clk 0:01:33]}  f5 {[%clk 0:02:07]} 17. Qe5 {[%clk 0:01:22]}  Bd4 {[%clk 0:02:05]} 18. Qd6 {[%clk 0:01:19]}  Qxd6 {[%clk 0:02:04]} 19. Bxd6 {[%clk 0:01:18]}  Rf6 {[%clk 0:02:04]} 20. Ba3 {[%clk 0:01:14]}  Be6 {[%clk 0:01:57]} 21. c3 {[%clk 0:01:11]}  Be5 {[%clk 0:01:57]} 22. Bxa6 {[%clk 0:01:07]}  Nd5 {[%clk 0:01:56]} 23. Bc4 {[%clk 0:01:04]}  Nf4 {[%clk 0:01:54]} 24. Bxe6+ {[%clk 0:01:02]}  Rxe6 {[%clk 0:01:54]} 25. g3 {[%clk 0:01:02]}  Nh3+ {[%clk 0:01:43]} 26. Kg2 {[%clk 0:01:01]}  Rh6 {[%clk 0:01:42]} 27. f4 {[%clk 0:00:58]}  Bf6 {[%clk 0:01:42]} 28. Rad1 {[%clk 0:00:55]}  g5 {[%clk 0:01:42]} 29. fxg5 {[%clk 0:00:54]}  Nxg5 {[%clk 0:01:40]} 30. Rxf5 {[%clk 0:00:54]} 1-0


[Site "https://www.chess.com"]

[Event "Titled Tuesday Blitz May 10 Early 2022"]
[White "Gurevich, Dmitry"]
[Black "Aldokhin, Ivan"]
[WhiteFideId "2000407"]
[BlackFideId "24115720"]
[WhiteElo "2506"]
[BlackElo "2231"]
[Result "1-0"]
[Round "11"]
[TimeControl "180+1"]
[Date "2022.05.10"]
[WhiteClock "0:00:15"]
[BlackClock "0:00:07"]

1. d4 {[%clk 0:03:00]}  Nf6 {[%clk 0:02:59]} 2. c4 {[%clk 0:03:00]}  g6 {[%clk 0:03:00]} 3. Nc3 {[%clk 0:03:00]}  Bg7 {[%clk 0:03:01]} 4. e4 {[%clk 0:03:00]}  d6 {[%clk 0:03:02]} 5. Nf3 {[%clk 0:03:00]}  O-O {[%clk 0:03:02]} 6. Be2 {[%clk 0:03:00]}  Nc6 {[%clk 0:03:02]} 7. d5 {[%clk 0:03:00]}  Nb4 {[%clk 0:03:02]} 8. O-O {[%clk 0:02:57]}  Re8 {[%clk 0:03:00]} 9. a3 {[%clk 0:02:52]}  Na6 {[%clk 0:03:00]} 10. Nd4 {[%clk 0:02:51]}  Nc5 {[%clk 0:02:56]} 11. f3 {[%clk 0:02:50]}  e5 {[%clk 0:02:55]} 12. Nb3 {[%clk 0:02:39]}  Nxb3 {[%clk 0:02:55]} 13. Qxb3 {[%clk 0:02:39]}  Nh5 {[%clk 0:02:56]} 14. g3 {[%clk 0:02:37]}  f5 {[%clk 0:02:56]} 15. c5 {[%clk 0:02:32]}  dxc5 {[%clk 0:02:18]} 16. d6+ {[%clk 0:02:29]}  Kh8 {[%clk 0:02:18]} 17. dxc7 {[%clk 0:02:24]}  Qxc7 {[%clk 0:02:18]} 18. Bc4 {[%clk 0:02:14]}  Nf6 {[%clk 0:02:13]} 19. Bg5 {[%clk 0:02:11]}  Qb6 {[%clk 0:02:02]} 20. Qxb6 {[%clk 0:01:52]}  axb6 {[%clk 0:02:02]} 21. Rad1 {[%clk 0:01:45]}  Be6 {[%clk 0:01:58]} 22. Bxe6 {[%clk 0:01:42]}  Rxe6 {[%clk 0:01:58]} 23. Bxf6 {[%clk 0:01:36]}  Bxf6 {[%clk 0:01:57]} 24. Rd7 {[%clk 0:01:36]}  Re7 {[%clk 0:01:35]} 25. Rfd1 {[%clk 0:01:33]}  Rxd7 {[%clk 0:01:34]} 26. Rxd7 {[%clk 0:01:33]}  Rd8 {[%clk 0:01:35]} 27. Rf7 {[%clk 0:01:23]}  Bg5 {[%clk 0:01:20]} 28. Nd5 {[%clk 0:01:22]}  Rd6 {[%clk 0:01:11]} 29. Rxb7 {[%clk 0:01:19]}  Bc1 {[%clk 0:01:10]} 30. Rxb6 {[%clk 0:01:15]}  Rxb6 {[%clk 0:01:04]} 31. Nxb6 {[%clk 0:01:15]}  Bxb2 {[%clk 0:01:05]} 32. a4 {[%clk 0:01:12]}  Bd4+ {[%clk 0:00:52]} 33. Kf1 {[%clk 0:01:11]}  c4 {[%clk 0:00:53]} 34. Nxc4 {[%clk 0:01:10]}  Kg7 {[%clk 0:00:54]} 35. a5 {[%clk 0:01:08]}  Kf6 {[%clk 0:00:55]} 36. a6 {[%clk 0:01:05]}  Ke6 {[%clk 0:00:37]} 37. Ke2 {[%clk 0:01:02]}  Kd7 {[%clk 0:00:35]} 38. exf5 {[%clk 0:00:57]}  gxf5 {[%clk 0:00:35]} 39. Nxe5+ {[%clk 0:00:57]}  Kc7 {[%clk 0:00:35]} 40. Nf7 {[%clk 0:00:54]}  Kb6 {[%clk 0:00:31]} 41. f4 {[%clk 0:00:52]}  Kxa6 {[%clk 0:00:30]} 42. Nd6 {[%clk 0:00:51]}  Kb6 {[%clk 0:00:30]} 43. Nxf5 {[%clk 0:00:51]}  Ba1 {[%clk 0:00:30]} 44. Kd3 {[%clk 0:00:51]}  Kc6 {[%clk 0:00:30]} 45. Ke4 {[%clk 0:00:51]}  Kd7 {[%clk 0:00:31]} 46. Kd5 {[%clk 0:00:51]}  Ke8 {[%clk 0:00:31]} 47. Ke6 {[%clk 0:00:51]}  Kf8 {[%clk 0:00:31]} 48. Ne7 {[%clk 0:00:49]}  Kg7 {[%clk 0:00:32]} 49. f5 {[%clk 0:00:48]}  h5 {[%clk 0:00:32]} 50. h3 {[%clk 0:00:48]}  Kh6 {[%clk 0:00:31]} 51. f6 {[%clk 0:00:45]}  Kg5 {[%clk 0:00:32]} 52. Nd5 {[%clk 0:00:42]}  Kg6 {[%clk 0:00:30]} 53. h4 {[%clk 0:00:37]}  Bd4 {[%clk 0:00:29]} 54. Nf4+ {[%clk 0:00:37]}  Kh6 {[%clk 0:00:28]} 55. f7 {[%clk 0:00:35]}  Bc5 {[%clk 0:00:25]} 56. Kd7 {[%clk 0:00:31]}  Kh7 {[%clk 0:00:04]} 57. Ke8 {[%clk 0:00:27]}  Bf8 {[%clk 0:00:03]} 58. Kxf8 {[%clk 0:00:26]}  Kh6 {[%clk 0:00:04]} 59. Nxh5 {[%clk 0:00:21]}  Kh7 {[%clk 0:00:05]} 60. Ke7 {[%clk 0:00:19]}  Kh6 {[%clk 0:00:06]} 61. f8=Q+ {[%clk 0:00:17]}  Kg6 {[%clk 0:00:07]} 62. Qf6+ {[%clk 0:00:15]} 1-0


[Site "https://www.chess.com"]

[Event "Titled Tuesday Blitz May 10 Early 2022"]
[White "Harshavardhan G B"]
[Black "Redzisz, Michal"]
[WhiteFideId "25059009"]
[BlackFideId "21816107"]
[WhiteElo "1831"]
[BlackElo "2004"]
[Result "1-0"]
[Round "11"]
[TimeControl "180+1"]
[Date "2022.05.11"]
[WhiteClock "0:00:38"]
[BlackClock "0:00:01"]

1. e4 {[%clk 0:03:00]}  c5 {[%clk 0:02:58]} 2. Nf3 {[%clk 0:02:56]}  Nc6 {[%clk 0:02:58]} 3. d4 {[%clk 0:02:54]}  cxd4 {[%clk 0:02:58]} 4. Nxd4 {[%clk 0:02:55]}  g6 {[%clk 0:02:55]} 5. c4 {[%clk 0:02:54]}  Bg7 {[%clk 0:02:56]} 6. Be3 {[%clk 0:02:52]}  Nf6 {[%clk 0:02:54]} 7. Nc3 {[%clk 0:02:51]}  d6 {[%clk 0:02:54]} 8. Be2 {[%clk 0:02:46]}  O-O {[%clk 0:02:54]} 9. O-O {[%clk 0:02:45]}  Bd7 {[%clk 0:02:55]} 10. Rc1 {[%clk 0:02:41]}  Nxd4 {[%clk 0:02:51]} 11. Bxd4 {[%clk 0:02:33]}  Bc6 {[%clk 0:02:52]} 12. f3 {[%clk 0:02:30]}  a5 {[%clk 0:02:52]} 13. Qd2 {[%clk 0:02:25]}  Nd7 {[%clk 0:02:51]} 14. Bf2 {[%clk 0:02:23]}  Nc5 {[%clk 0:02:38]} 15. Kh1 {[%clk 0:02:18]}  h5 {[%clk 0:02:32]} 16. Nd5 {[%clk 0:02:11]}  Bxd5 {[%clk 0:02:31]} 17. cxd5 {[%clk 0:02:07]}  Qb6 {[%clk 0:02:26]} 18. b3 {[%clk 0:02:06]}  Rfc8 {[%clk 0:02:21]} 19. Rc4 {[%clk 0:01:53]}  Qa7 {[%clk 0:02:08]} 20. Rfc1 {[%clk 0:01:50]}  b5 {[%clk 0:02:08]} 21. R4c2 {[%clk 0:01:45]}  b4 {[%clk 0:01:42]} 22. f4 {[%clk 0:01:37]}  Bc3 {[%clk 0:01:29]} 23. Qe3 {[%clk 0:01:29]}  a4 {[%clk 0:01:16]} 24. Rg1 {[%clk 0:01:23]}  axb3 {[%clk 0:01:16]} 25. axb3 {[%clk 0:01:22]}  Qd7 {[%clk 0:01:04]} 26. g4 {[%clk 0:01:19]}  h4 {[%clk 0:01:04]} 27. g5 {[%clk 0:01:17]}  Rc7 {[%clk 0:00:45]} 28. Bxh4 {[%clk 0:01:12]}  Nxb3 {[%clk 0:00:44]} 29. Bg4 {[%clk 0:01:06]}  Qb5 {[%clk 0:00:43]} 30. Qh3 {[%clk 0:01:04]}  Nd4 {[%clk 0:00:20]} 31. Rcg2 {[%clk 0:01:01]}  Ra3 {[%clk 0:00:19]} 32. f5 {[%clk 0:00:56]}  Be1 {[%clk 0:00:18]} 33. Bg3 {[%clk 0:00:55]}  Bxg3 {[%clk 0:00:18]} 34. hxg3 {[%clk 0:00:55]}  Qd3 {[%clk 0:00:07]} 35. fxg6 {[%clk 0:00:54]}  fxg6 {[%clk 0:00:07]} 36. Be6+ {[%clk 0:00:51]}  Nxe6 {[%clk 0:00:08]} 37. Qxe6+ {[%clk 0:00:52]}  Kg7 {[%clk 0:00:08]} 38. Rf2 {[%clk 0:00:49]}  Qf3+ {[%clk 0:00:03]} 39. Rxf3 {[%clk 0:00:48]}  Rxf3 {[%clk 0:00:04]} 40. Qh3 {[%clk 0:00:45]}  b3 {[%clk 0:00:04]} 41. Qh6+ {[%clk 0:00:45]}  Kf7 {[%clk 0:00:04]} 42. Qh7+ {[%clk 0:00:45]}  Ke8 {[%clk 0:00:05]} 43. Qxg6+ {[%clk 0:00:45]}  Kd8 {[%clk 0:00:05]} 44. Qg8+ {[%clk 0:00:45]}  Kd7 {[%clk 0:00:05]} 45. Qb8 {[%clk 0:00:44]}  Rfc3 {[%clk 0:00:02]} 46. g6 {[%clk 0:00:44]}  Rc8 {[%clk 0:00:02]} 47. Qb5+ {[%clk 0:00:43]}  Kd8 {[%clk 0:00:01]} 48. g7 {[%clk 0:00:43]}  Kc7 {[%clk 0:00:01]} 49. Qa5+ {[%clk 0:00:43]}  Kb7 {[%clk 0:00:02]} 50. Qxc3 {[%clk 0:00:43]}  Rxc3 {[%clk 0:00:03]} 51. g8=Q {[%clk 0:00:43]}  b2 {[%clk 0:00:04]} 52. Qh8 {[%clk 0:00:38]}  Rc2 {[%clk 0:00:01]} 53. Qd4 {[%clk 0:00:38]}  Rh2+ {[%clk 0:00:01]} 1-0


[Site "https://www.chess.com"]

[Event "Titled Tuesday Blitz May 10 Early 2022"]
[White "Horak, Martin"]
[Black "Petrova, Irina"]
[WhiteFideId "367095"]
[BlackFideId "14124122"]
[WhiteElo "1997"]
[BlackElo "1993"]
[Result "1-0"]
[Round "11"]
[TimeControl "180+1"]
[Date "2022.05.11"]
[WhiteClock "0:00:38"]
[BlackClock "0:00:09"]

1. Nf3 {[%clk 0:03:00]}  d6 {[%clk 0:02:59]} 2. d4 {[%clk 0:03:00]}  g6 {[%clk 0:02:59]} 3. e4 {[%clk 0:03:00]}  Bg7 {[%clk 0:02:59]} 4. Nc3 {[%clk 0:03:00]}  Nf6 {[%clk 0:02:59]} 5. Be3 {[%clk 0:02:54]}  O-O {[%clk 0:02:59]} 6. Qd2 {[%clk 0:02:53]}  a6 {[%clk 0:02:51]} 7. Bh6 {[%clk 0:02:51]}  b5 {[%clk 0:02:50]} 8. Bd3 {[%clk 0:02:39]}  Bb7 {[%clk 0:02:50]} 9. Bxg7 {[%clk 0:02:36]}  Kxg7 {[%clk 0:02:50]} 10. Qf4 {[%clk 0:02:37]}  Nbd7 {[%clk 0:02:44]} 11. e5 {[%clk 0:02:34]}  Nd5 {[%clk 0:02:40]} 12. Nxd5 {[%clk 0:02:33]}  Bxd5 {[%clk 0:02:41]} 13. h4 {[%clk 0:02:30]}  dxe5 {[%clk 0:02:31]} 14. dxe5 {[%clk 0:02:28]}  Bxf3 {[%clk 0:02:31]} 15. gxf3 {[%clk 0:02:26]}  Nc5 {[%clk 0:02:30]} 16. O-O-O {[%clk 0:02:24]}  Ne6 {[%clk 0:01:57]} 17. Qg3 {[%clk 0:01:52]}  Qb8 {[%clk 0:01:42]} 18. f4 {[%clk 0:01:46]}  Kh8 {[%clk 0:01:33]} 19. h5 {[%clk 0:01:44]}  g5 {[%clk 0:01:24]} 20. fxg5 {[%clk 0:01:32]}  Rg8 {[%clk 0:01:10]} 21. f4 {[%clk 0:01:30]}  Qb6 {[%clk 0:01:01]} 22. Kb1 {[%clk 0:01:11]}  Rad8 {[%clk 0:00:32]} 23. Qf3 {[%clk 0:01:11]}  Nd4 {[%clk 0:00:28]} 24. Qe4 {[%clk 0:01:10]}  Rg7 {[%clk 0:00:25]} 25. f5 {[%clk 0:01:00]}  Rxg5 {[%clk 0:00:20]} 26. f6 {[%clk 0:00:59]}  Nf5 {[%clk 0:00:18]} 27. Qf4 {[%clk 0:00:41]}  h6 {[%clk 0:00:11]} 28. Bxf5 {[%clk 0:00:41]}  Rxd1+ {[%clk 0:00:10]} 29. Rxd1 {[%clk 0:00:40]}  Rg1 {[%clk 0:00:09]} 30. Qxh6+ {[%clk 0:00:38]} 1-0


[Site "https://www.chess.com"]

[Event "Titled Tuesday Blitz May 10 Early 2022"]
[White "Ianov, Viktor"]
[Black "Mikhalsky, Vladimir"]
[WhiteFideId "14102730"]
[BlackFideId "14144352"]
[WhiteElo "2152"]
[BlackElo "2301"]
[Result "1-0"]
[Round "11"]
[TimeControl "180+1"]
[Date "2022.05.11"]
[WhiteClock "0:00:29"]
[BlackClock "0:00:09"]

1. Nf3 {[%clk 0:03:00]}  c5 {[%clk 0:02:35]} 2. g3 {[%clk 0:02:58]}  d5 {[%clk 0:02:31]} 3. Bg2 {[%clk 0:02:58]}  f6 {[%clk 0:02:27]} 4. c4 {[%clk 0:02:56]}  d4 {[%clk 0:02:27]} 5. d3 {[%clk 0:02:56]}  e5 {[%clk 0:02:26]} 6. O-O {[%clk 0:02:55]}  Nc6 {[%clk 0:02:25]} 7. e3 {[%clk 0:02:55]}  Be6 {[%clk 0:02:24]} 8. exd4 {[%clk 0:02:55]}  cxd4 {[%clk 0:02:24]} 9. a3 {[%clk 0:02:53]}  a5 {[%clk 0:02:23]} 10. Re1 {[%clk 0:02:53]}  Qd7 {[%clk 0:02:23]} 11. Nbd2 {[%clk 0:02:51]}  Nh6 {[%clk 0:02:17]} 12. Qc2 {[%clk 0:02:49]}  Be7 {[%clk 0:02:11]} 13. Rb1 {[%clk 0:02:48]}  O-O {[%clk 0:02:11]} 14. c5 {[%clk 0:02:48]}  a4 {[%clk 0:02:07]} 15. Nc4 {[%clk 0:02:44]}  Bxc5 {[%clk 0:02:00]} 16. Bxh6 {[%clk 0:02:41]}  gxh6 {[%clk 0:01:57]} 17. Ncxe5 {[%clk 0:02:41]}  fxe5 {[%clk 0:01:41]} 18. Qxc5 {[%clk 0:02:39]}  Ra5 {[%clk 0:01:40]} 19. Qc1 {[%clk 0:02:36]}  Bf5 {[%clk 0:01:33]} 20. Qc4+ {[%clk 0:02:07]}  Qf7 {[%clk 0:01:28]} 21. Qc2 {[%clk 0:01:55]}  Qb3 {[%clk 0:01:21]} 22. Qd2 {[%clk 0:01:44]}  Qxd3 {[%clk 0:01:04]} 23. Qxh6 {[%clk 0:01:43]}  Qxb1 {[%clk 0:00:53]} 24. Rxb1 {[%clk 0:01:41]}  Bxb1 {[%clk 0:00:53]} 25. Ng5 {[%clk 0:01:34]}  Rc5 {[%clk 0:00:33]} 26. Be4 {[%clk 0:01:20]}  Rc1+ {[%clk 0:00:32]} 27. Kg2 {[%clk 0:01:18]}  Bxe4+ {[%clk 0:00:32]} 28. Nxe4 {[%clk 0:01:17]}  Rc2 {[%clk 0:00:30]} 29. Qe6+ {[%clk 0:01:04]}  Kg7 {[%clk 0:00:28]} 30. Qg4+ {[%clk 0:01:03]}  Kh8 {[%clk 0:00:27]} 31. h4 {[%clk 0:00:51]}  d3 {[%clk 0:00:27]} 32. Qg5 {[%clk 0:00:50]}  d2 {[%clk 0:00:21]} 33. Nxd2 {[%clk 0:00:44]}  Rxb2 {[%clk 0:00:20]} 34. Ne4 {[%clk 0:00:43]}  Re2 {[%clk 0:00:20]} 35. Qg4 {[%clk 0:00:41]}  Nd4 {[%clk 0:00:19]} 36. h5 {[%clk 0:00:40]}  b5 {[%clk 0:00:17]} 37. h6 {[%clk 0:00:40]}  Rg8 {[%clk 0:00:15]} 38. Qh4 {[%clk 0:00:40]}  Rf8 {[%clk 0:00:15]} 39. Qg5 {[%clk 0:00:37]}  Nf5 {[%clk 0:00:09]} 40. Nf6 {[%clk 0:00:29]} 1-0


[Site "https://www.chess.com"]

[Event "Titled Tuesday Blitz May 10 Early 2022"]
[White "Ismayil, Malak"]
[Black "Vovk, Orest"]
[WhiteFideId "13412604"]
[BlackFideId "14113490"]
[WhiteElo "1879"]
[BlackElo "2203"]
[Result "1-0"]
[Round "11"]
[TimeControl "180+1"]
[Date "2022.05.11"]
[WhiteClock "0:00:23"]
[BlackClock "0:00:46"]

1. e4 {[%clk 0:03:00]}  g5 {[%clk 0:02:51]} 2. d4 {[%clk 0:03:00]}  g4 {[%clk 0:02:38]} 3. Nc3 {[%clk 0:02:56]}  Bg7 {[%clk 0:02:37]} 4. Be3 {[%clk 0:02:52]}  d6 {[%clk 0:02:37]} 5. Bc4 {[%clk 0:02:49]}  c6 {[%clk 0:02:36]} 6. Nge2 {[%clk 0:02:48]}  h5 {[%clk 0:02:36]} 7. a3 {[%clk 0:02:45]}  Qa5 {[%clk 0:02:34]} 8. Qd2 {[%clk 0:02:44]}  Nf6 {[%clk 0:02:33]} 9. f4 {[%clk 0:02:15]}  gxf3 {[%clk 0:02:31]} 10. gxf3 {[%clk 0:02:16]}  b5 {[%clk 0:02:30]} 11. Bb3 {[%clk 0:02:11]}  Nbd7 {[%clk 0:02:26]} 12. O-O-O {[%clk 0:01:43]}  Ba6 {[%clk 0:02:18]} 13. f4 {[%clk 0:01:39]}  b4 {[%clk 0:02:12]} 14. axb4 {[%clk 0:01:37]}  Qa1+ {[%clk 0:02:04]} 15. Nb1 {[%clk 0:01:37]}  Nxe4 {[%clk 0:02:04]} 16. Qe1 {[%clk 0:01:38]}  Ndf6 {[%clk 0:01:49]} 17. Ng3 {[%clk 0:01:24]}  d5 {[%clk 0:01:40]} 18. c3 {[%clk 0:01:14]}  h4 {[%clk 0:01:33]} 19. Nf5 {[%clk 0:01:12]}  Bf8 {[%clk 0:01:32]} 20. Kc2 {[%clk 0:01:09]}  Bc4 {[%clk 0:01:20]} 21. Na3 {[%clk 0:01:01]}  Qxd1+ {[%clk 0:01:11]} 22. Qxd1 {[%clk 0:00:59]}  Ba6 {[%clk 0:01:12]} 23. Ba4 {[%clk 0:00:55]}  Rc8 {[%clk 0:01:10]} 24. b5 {[%clk 0:00:49]}  e6 {[%clk 0:01:08]} 25. bxa6 {[%clk 0:00:48]}  exf5 {[%clk 0:01:07]} 26. Nb1 {[%clk 0:00:37]}  Rg8 {[%clk 0:01:01]} 27. Rg1 {[%clk 0:00:36]}  Ng4 {[%clk 0:01:01]} 28. Qd3 {[%clk 0:00:34]}  h3 {[%clk 0:00:58]} 29. Nd2 {[%clk 0:00:28]}  Nxe3+ {[%clk 0:00:57]} 30. Qxe3 {[%clk 0:00:28]}  Rg4 {[%clk 0:00:50]} 31. Rxg4 {[%clk 0:00:26]}  fxg4 {[%clk 0:00:51]} 32. Nxe4 {[%clk 0:00:26]}  dxe4 {[%clk 0:00:52]} 33. Qxe4+ {[%clk 0:00:27]}  Be7 {[%clk 0:00:52]} 34. Bxc6+ {[%clk 0:00:27]}  Kf8 {[%clk 0:00:52]} 35. Bd5 {[%clk 0:00:27]}  g3 {[%clk 0:00:49]} 36. Qf5 {[%clk 0:00:24]}  g2 {[%clk 0:00:46]} 37. Qxf7# {[%clk 0:00:23]} 1-0


[Site "https://www.chess.com"]

[Event "Titled Tuesday Blitz May 10 Early 2022"]
[White "Jarovinsky, Alexey"]
[Black "Derraugh, Geordie"]
[WhiteFideId "14115131"]
[BlackFideId "2603950"]
[WhiteElo "2446"]
[BlackElo "2116"]
[Result "1-0"]
[Round "11"]
[TimeControl "180+1"]
[Date "2022.05.11"]
[WhiteClock "0:00:04"]
[BlackClock "0:00:11"]

1. Nc3 {[%clk 0:03:00]}  Nc6 {[%clk 0:02:57]} 2. d4 {[%clk 0:03:00]}  e6 {[%clk 0:02:55]} 3. d5 {[%clk 0:02:57]}  exd5 {[%clk 0:02:55]} 4. Nxd5 {[%clk 0:02:58]}  Bd6 {[%clk 0:02:52]} 5. e4 {[%clk 0:02:47]}  h6 {[%clk 0:02:36]} 6. Bc4 {[%clk 0:02:45]}  Nf6 {[%clk 0:02:36]} 7. Nf3 {[%clk 0:02:24]}  O-O {[%clk 0:02:22]} 8. Nxf6+ {[%clk 0:02:19]}  Qxf6 {[%clk 0:02:23]} 9. O-O {[%clk 0:02:18]}  Ne5 {[%clk 0:02:19]} 10. Bb3 {[%clk 0:02:01]}  b6 {[%clk 0:02:09]} 11. Nd4 {[%clk 0:01:56]}  Qh4 {[%clk 0:01:56]} 12. f4 {[%clk 0:01:50]}  Ng4 {[%clk 0:01:48]} 13. h3 {[%clk 0:01:49]}  Nf6 {[%clk 0:01:07]} 14. e5 {[%clk 0:01:48]}  Ba6 {[%clk 0:01:00]} 15. c4 {[%clk 0:01:22]}  Bc5 {[%clk 0:00:48]} 16. exf6 {[%clk 0:01:20]}  Qxf6 {[%clk 0:00:49]} 17. Be3 {[%clk 0:01:18]}  Rae8 {[%clk 0:00:49]} 18. Bf2 {[%clk 0:01:17]}  Qxf4 {[%clk 0:00:44]} 19. Nf3 {[%clk 0:00:51]}  Bd6 {[%clk 0:00:34]} 20. Qd2 {[%clk 0:00:31]}  Qf6 {[%clk 0:00:34]} 21. Bd4 {[%clk 0:00:26]}  Qg6 {[%clk 0:00:35]} 22. Bc2 {[%clk 0:00:24]}  Qh5 {[%clk 0:00:35]} 23. Qd3 {[%clk 0:00:21]}  f5 {[%clk 0:00:32]} 24. Rae1 {[%clk 0:00:17]}  Rxe1 {[%clk 0:00:24]} 25. Rxe1 {[%clk 0:00:18]}  Bb7 {[%clk 0:00:25]} 26. Rf1 {[%clk 0:00:12]}  Qg6 {[%clk 0:00:21]} 27. Rf2 {[%clk 0:00:07]}  Be4 {[%clk 0:00:21]} 28. Qd2 {[%clk 0:00:07]}  Bg3 {[%clk 0:00:21]} 29. Rf1 {[%clk 0:00:05]}  Bd6 {[%clk 0:00:17]} 30. Ne5 {[%clk 0:00:05]}  Qe6 {[%clk 0:00:11]} 31. Bxe4 {[%clk 0:00:04]}  Bxe5 {[%clk 0:00:11]} 32. Bd5 {[%clk 0:00:04]} 1-0


[Site "https://www.chess.com"]

[Event "Titled Tuesday Blitz May 10 Early 2022"]
[White "Kazakouski, Valery"]
[Black "Keymer, Vincent"]
[WhiteFideId "13507443"]
[BlackFideId "12940690"]
[WhiteElo "2524"]
[BlackElo "2548"]
[Result "0-1"]
[Round "11"]
[TimeControl "180+1"]
[Date "2022.05.10"]
[WhiteClock "0:00:04"]
[BlackClock "0:00:35"]

1. d4 {[%clk 0:03:00]}  Nf6 {[%clk 0:02:58]} 2. c4 {[%clk 0:03:00]}  e6 {[%clk 0:02:58]} 3. Nf3 {[%clk 0:03:00]}  d5 {[%clk 0:02:57]} 4. g3 {[%clk 0:03:00]}  Bb4+ {[%clk 0:02:56]} 5. Bd2 {[%clk 0:02:59]}  Be7 {[%clk 0:02:56]} 6. Bg2 {[%clk 0:02:58]}  O-O {[%clk 0:02:57]} 7. O-O {[%clk 0:02:55]}  c6 {[%clk 0:02:57]} 8. Qc2 {[%clk 0:02:54]}  Nbd7 {[%clk 0:02:57]} 9. Rd1 {[%clk 0:02:54]}  b6 {[%clk 0:02:57]} 10. Bf4 {[%clk 0:02:52]}  Ba6 {[%clk 0:02:54]} 11. Nbd2 {[%clk 0:02:51]}  Nh5 {[%clk 0:02:53]} 12. Be3 {[%clk 0:02:43]}  Rc8 {[%clk 0:02:53]} 13. Rac1 {[%clk 0:02:40]}  h6 {[%clk 0:02:47]} 14. g4 {[%clk 0:02:24]}  Nhf6 {[%clk 0:02:46]} 15. h3 {[%clk 0:02:24]}  Bd6 {[%clk 0:02:36]} 16. a3 {[%clk 0:02:12]}  Bb7 {[%clk 0:02:27]} 17. b4 {[%clk 0:02:04]}  c5 {[%clk 0:02:25]} 18. Qb3 {[%clk 0:02:01]}  Ba8 {[%clk 0:02:16]} 19. Qb2 {[%clk 0:01:43]}  Qe7 {[%clk 0:02:08]} 20. bxc5 {[%clk 0:01:18]}  bxc5 {[%clk 0:02:08]} 21. dxc5 {[%clk 0:01:17]}  Nxc5 {[%clk 0:02:02]} 22. Bd4 {[%clk 0:01:16]}  Ncd7 {[%clk 0:01:56]} 23. Bxf6 {[%clk 0:00:54]}  Nxf6 {[%clk 0:01:53]} 24. Qa2 {[%clk 0:00:54]}  Bxa3 {[%clk 0:01:49]} 25. Ra1 {[%clk 0:00:53]}  Bc5 {[%clk 0:01:48]} 26. e3 {[%clk 0:00:45]}  Bb6 {[%clk 0:01:45]} 27. Ne5 {[%clk 0:00:43]}  Qc7 {[%clk 0:01:39]} 28. Qb2 {[%clk 0:00:37]}  Rb8 {[%clk 0:01:25]} 29. Qc3 {[%clk 0:00:34]}  Rfd8 {[%clk 0:01:23]} 30. Nb3 {[%clk 0:00:20]}  dxc4 {[%clk 0:01:05]} 31. Nxc4 {[%clk 0:00:14]}  Bxg2 {[%clk 0:01:04]} 32. Kxg2 {[%clk 0:00:14]}  Rxd1 {[%clk 0:00:58]} 33. Rxd1 {[%clk 0:00:15]}  Rc8 {[%clk 0:00:57]} 34. Rc1 {[%clk 0:00:11]}  Qb7+ {[%clk 0:00:52]} 35. Kg1 {[%clk 0:00:11]}  Ne4 {[%clk 0:00:49]} 36. Qd3 {[%clk 0:00:09]}  Ng5 {[%clk 0:00:48]} 37. Nd6 {[%clk 0:00:04]}  Rxc1+ {[%clk 0:00:47]} 38. Nxc1 {[%clk 0:00:05]}  Qf3 {[%clk 0:00:40]} 39. Qc4 {[%clk 0:00:04]}  Qd1+ {[%clk 0:00:35]} 0-1


[Site "https://www.chess.com"]

[Event "Titled Tuesday Blitz May 10 Early 2022"]
[White "Kazarian, Anna-Maja"]
[Black "Tomaszewski, Kacper"]
[WhiteFideId "1033689"]
[BlackFideId "1127373"]
[WhiteElo "2004"]
[BlackElo "2153"]
[Result "1-0"]
[Round "11"]
[TimeControl "180+1"]
[Date "2022.05.11"]
[WhiteClock "0:00:17"]
[BlackClock "0:00:19"]

1. e4 {[%clk 0:03:00]}  c5 {[%clk 0:02:59]} 2. Nf3 {[%clk 0:03:00]}  e6 {[%clk 0:02:59]} 3. d4 {[%clk 0:03:01]}  cxd4 {[%clk 0:03:00]} 4. Nxd4 {[%clk 0:03:01]}  a6 {[%clk 0:03:01]} 5. c4 {[%clk 0:03:01]}  Nf6 {[%clk 0:02:58]} 6. Nc3 {[%clk 0:03:01]}  Bb4 {[%clk 0:02:58]} 7. Bd3 {[%clk 0:02:59]}  Nc6 {[%clk 0:02:44]} 8. Nc2 {[%clk 0:02:54]}  Bxc3+ {[%clk 0:02:37]} 9. bxc3 {[%clk 0:02:55]}  d5 {[%clk 0:02:36]} 10. cxd5 {[%clk 0:02:53]}  exd5 {[%clk 0:02:36]} 11. exd5 {[%clk 0:02:39]}  Nxd5 {[%clk 0:02:33]} 12. O-O {[%clk 0:02:35]}  O-O {[%clk 0:02:33]} 13. Bb2 {[%clk 0:02:30]}  Nf4 {[%clk 0:02:25]} 14. Be4 {[%clk 0:02:19]}  Qh4 {[%clk 0:02:15]} 15. Qf3 {[%clk 0:02:09]}  Ne5 {[%clk 0:02:08]} 16. Qd1 {[%clk 0:01:10]}  Ng4 {[%clk 0:01:43]} 17. h3 {[%clk 0:00:52]}  Nxh3+ {[%clk 0:01:42]} 18. gxh3 {[%clk 0:00:51]}  Qxh3 {[%clk 0:01:43]} 19. Qd6 {[%clk 0:00:50]}  f5 {[%clk 0:01:31]} 20. Bd5+ {[%clk 0:00:49]}  Be6 {[%clk 0:01:26]} 21. Bxe6+ {[%clk 0:00:44]}  Kh8 {[%clk 0:01:27]} 22. Qg3 {[%clk 0:00:45]}  Qh6 {[%clk 0:01:26]} 23. Nd4 {[%clk 0:00:37]}  Rf6 {[%clk 0:01:03]} 24. Bxf5 {[%clk 0:00:26]}  Raf8 {[%clk 0:00:38]} 25. Bc1 {[%clk 0:00:20]}  g5 {[%clk 0:00:29]} 26. Bxg4 {[%clk 0:00:20]}  Qg7 {[%clk 0:00:26]} 27. Ne6 {[%clk 0:00:18]}  Rxe6 {[%clk 0:00:23]} 28. Bxe6 {[%clk 0:00:18]}  h5 {[%clk 0:00:22]} 29. Qxg5 {[%clk 0:00:17]}  Rf6 {[%clk 0:00:15]} 30. Qxg7+ {[%clk 0:00:15]}  Kxg7 {[%clk 0:00:16]} 31. Bh3 {[%clk 0:00:15]}  Rg6+ {[%clk 0:00:17]} 32. Bg2 {[%clk 0:00:15]}  Kf6 {[%clk 0:00:17]} 33. Be3 {[%clk 0:00:15]}  h4 {[%clk 0:00:18]} 34. Bd4+ {[%clk 0:00:16]}  Kf5 {[%clk 0:00:18]} 35. Kh2 {[%clk 0:00:16]}  h3 {[%clk 0:00:18]} 36. Bxh3+ {[%clk 0:00:17]}  Kf4 {[%clk 0:00:19]} 37. Rae1 {[%clk 0:00:17]} 1-0


[Site "https://www.chess.com"]